bitfinex/quotes_SOLUSD_20240703
["timestamp","ask_amount","ask_price","bid_price","bid_amount"]
[1720043196120,7.0671,141.5,141.46,7.0689]
[1720043198143,7.0671,141.5,141.46,20.6089]
[1720043201331,7.0668,141.51,141.47,7.0685]
[1720043202831,19.6293,141.52,141.48,7.068]
[1720043203347,7.0666,141.51,141.47,38.2799]
[1720043205366,16.3791,141.53,141.47,17.6715]
[1720043205654,7.0668,141.51,141.47,38.2798]
[1720043216471,7.0668,141.51,141.48,20.6081]
[1720043217269,7.0663,141.52,141.48,20.6081]
[1720043217646,7.0666,141.51,141.48,20.6081]
[1720043218068,7.0666,141.51,141.48,13.54]
[1720043219447,7.0666,141.51,141.48,14.95144525]
[1720043220270,7.0668,141.51,141.48,14.95144525]
[1720043220451,7.0668,141.51,141.48,1.41144525]
[1720043220648,7.0668,141.51,141.48,14.95144525]
[1720043221066,7.0672,141.5,141.48,14.95144525]
[1720043221487,7.0668,141.51,141.48,14.95144525]
[1720043221694,7.0668,141.51,141.49,13.54]
[1720043222069,7.0671,141.5,141.49,13.54]
[1720043222280,7.0671,141.5,141.48,1.41144525]
[1720043222587,7.0671,141.5,141.49,13.54]
[1720043224078,7.0671,141.5,141.47,17.6715]
[1720043224272,7.0671,141.5,141.48,13.54]
[1720043224472,7.0676,141.49,141.46,7.0688]
[1720043224686,7.0676,141.49,141.47,13.54]
[1720043225008,7.0676,141.49,141.48,13.54]
[1720043225993,31.2039,141.54,141.48,13.54]
[1720043225994,7.0673,141.5,141.48,13.54]
[1720043226870,7.0673,141.5,141.49,13.54]
[1720043227691,7.0673,141.5,141.47,1.41341674]
[1720043227894,7.0673,141.5,141.49,13.54]
[1720043231505,7.0673,141.5,141.48,13.54]
[1720043233691,7.0673,141.5,141.47,1.4134167]
[1720043233991,7.0673,141.5,141.47,14.9534167]
[1720043234195,7.0673,141.5,141.47,1.4134167]
[1720043234370,7.0673,141.5,141.47,14.9534167]
[1720043235387,7.0673,141.5,141.47,1.4134167]
[1720043235799,7.0673,141.5,141.47,1.41346301]
[1720043237486,7.0673,141.5,141.47,14.95346301]
[1720043237681,7.0673,141.5,141.46,8.48226102]
[1720043237881,7.0673,141.5,141.46,22.02226102]
[1720043238201,7.0673,141.5,141.46,8.48226102]
[1720043238589,7.0673,141.5,141.46,22.02226102]
[1720043238795,7.0673,141.5,141.46,20.6088]
[1720043239385,7.0673,141.5,141.47,20.6085]
[1720043240582,7.0673,141.5,141.47,7.0685]
[1720043241492,7.0677,141.49,141.45,31.2139]
[1720043242288,20.6073,141.5,141.46,7.069]
[1720043243893,7.0673,141.5,141.46,7.069]
[1720043245800,7.0673,141.5,141.47,7.0685]
[1720043246180,7.0668,141.51,141.47,7.0685]
[1720043247800,7.0672,141.5,141.46,20.6089]
[1720043248009,7.0672,141.5,141.46,7.0689]
[1720043250010,7.0672,141.5,141.47,7.0685]
[1720043250200,34.2079,141.53,141.46,7.069]
[1720043250397,7.0674,141.5,141.46,7.069]
[1720043252309,7.0676,141.49,141.45,24.7433]
[1720043252514,7.0676,141.49,141.45,38.2833]
[1720043254915,7.0676,141.49,141.45,24.7433]
[1720043255330,7.0676,141.49,141.45,38.2833]
[1720043256421,7.0676,141.49,141.46,7.0691]
[1720043256915,7.0676,141.49,141.46,20.6091]
[1720043257311,7.0676,141.49,141.46,13.54]
[1720043258707,7.0676,141.49,141.46,7.069]
[1720043258913,7.0676,141.49,141.46,20.609]
[1720043259602,7.0676,141.49,141.46,13.54]
[1720043260114,7.0676,141.49,141.45,24.7434]
[1720043260416,7.0676,141.49,141.45,38.2834]
[1720043261712,6.5676,141.49,141.45,38.2834]
[1720043262098,6.5676,141.49,141.45,24.7434]
[1720043262490,6.5676,141.49,141.45,38.2834]
[1720043263301,6.5676,141.49,141.45,24.7434]
[1720043263614,6.5676,141.49,141.45,38.2834]
[1720043265703,6.0676,141.49,141.45,38.2834]
[1720043266347,19.6076,141.49,141.45,24.7434]
[1720043267013,19.6076,141.49,141.46,7.0691]
[1720043267421,13.54,141.49,141.46,7.0691]
[1720043267724,20.6073,141.5,141.46,7.0691]
[1720043268321,7.0676,141.49,141.46,7.0691]
[1720043268934,7.0676,141.49,141.46,6.751444]
[1720043270052,20.6073,141.5,141.46,6.751444]
[1720043272419,7.0663,141.52,141.47,17.6712]
[1720043272620,20.6067,141.51,141.47,24.7396]
[1720043273022,7.0663,141.52,141.48,7.0679]
[1720043273242,20.6063,141.52,141.48,7.0679]
[1720043273539,13.54,141.52,141.49,7.0675]
[1720043274134,20.6062,141.52,141.48,7.0679]
[1720043278317,7.0662,141.52,141.48,7.0679]
[1720043278518,20.6062,141.52,141.48,7.0679]
[1720043278720,7.067,141.51,141.47,24.7397]
[1720043278918,7.067,141.51,141.47,38.2797]
[1720043279932,20.6063,141.52,141.48,7.0681]
[1720043280333,7.0667,141.51,141.47,38.2796]
[1720043280525,7.0663,141.52,141.48,7.068]
[1720043280723,20.6063,141.52,141.48,7.068]
[1720043281217,13.54,141.52,141.47,17.6712]
[1720043281419,13.54,141.52,141.46,13.54]
[1720043281632,7.0669,141.51,141.47,7.0686]
[1720043286759,7.0669,141.51,141.47,20.6086]
[1720043287832,7.0669,141.51,141.47,7.0686]
[1720043288233,20.6063,141.52,141.48,7.068]
[1720043288747,7.0667,141.51,141.47,20.6084]
[1720043294872,20.6064,141.52,141.48,7.0679]
[1720043295451,20.6064,141.52,141.47,20.6084]
[1720043296155,20.6064,141.52,141.47,7.0684]
[1720043296467,20.6064,141.52,141.47,20.6084]
[1720043297363,20.6064,141.52,141.47,7.0684]
[1720043297551,20.6064,141.52,141.47,20.6084]
[1720043297750,7.0666,141.51,141.47,20.6084]
[1720043298543,7.0666,141.51,141.47,7.0684]
[1720043298745,7.0666,141.51,141.47,20.6084]
[1720043299159,20.6063,141.52,141.47,20.6084]
[1720043300344,20.6063,141.52,141.48,7.0681]
[1720043300546,7.0663,141.52,141.48,20.6081]
[1720043303176,7.0666,141.51,141.47,7.0684]
[1720043303367,7.0666,141.51,141.47,20.6084]
[1720043303671,7.0663,141.52,141.47,20.6084]
[1720043304168,13.54,141.53,141.47,20.6084]
[1720043304355,7.0667,141.51,141.47,7.0685]
[1720043304558,7.0667,141.51,141.47,20.6085]
[1720043305878,7.0667,141.51,141.48,13.54]
[1720043306382,7.0661,141.52,141.48,20.6081]
[1720043306556,7.0658,141.53,141.48,20.6081]
[1720043307559,7.0658,141.53,141.48,7.0681]
[1720043307749,20.6058,141.53,141.48,20.6081]
[1720043310291,7.0658,141.53,141.48,20.6081]
[1720043310995,20.6058,141.53,141.48,20.6081]
[1720043311156,7.0662,141.52,141.48,20.6081]
[1720043311979,20.6062,141.52,141.48,7.0681]
[1720043312978,7.0658,141.53,141.48,7.0681]
[1720043313163,20.6058,141.53,141.48,20.6081]
[1720043314278,13.54,141.52,141.47,24.7389]
[1720043314572,13.54,141.52,141.47,38.2789]
[1720043315157,7.0669,141.51,141.47,38.2789]
[1720043316177,7.0663,141.52,141.47,38.2789]
[1720043316780,20.6063,141.52,141.47,38.2789]
[1720043316979,7.0663,141.52,141.47,38.2789]
[1720043319182,7.0663,141.52,141.48,20.608]
[1720043319771,7.0663,141.52,141.48,13.54]
[1720043320162,7.0663,141.52,141.47,24.7388]
[1720043320564,7.0663,141.52,141.48,13.54]
[1720043320780,7.0663,141.52,141.48,20.608]
[1720043321283,7.0663,141.52,141.48,7.068]
[1720043321481,7.0663,141.52,141.48,20.608]
[1720043325975,7.0663,141.52,141.47,38.2788]
[1720043326170,13.54,141.53,141.47,38.2788]
[1720043326171,7.0666,141.51,141.47,38.2788]
[1720043327165,7.0663,141.52,141.47,38.2788]
[1720043327581,7.0663,141.52,141.48,20.608]
[1720043329067,7.0663,141.52,141.48,7.068]
[1720043331766,7.0663,141.52,141.49,1.41108563]
[1720043332585,7.0658,141.53,141.49,1.41108563]
[1720043333769,7.0661,141.52,141.49,1.41108563]
[1720043334192,7.0661,141.52,141.48,7.068]
[1720043334389,7.0661,141.52,141.48,20.608]
[1720043335466,7.0658,141.53,141.49,1.41330302]
[1720043335668,7.0658,141.53,141.49,14.95330302]
[1720043336399,7.0658,141.53,141.49,1.41330302]
[1720043337894,7.0658,141.53,141.49,14.95330302]
[1720043339098,13.54,141.54,141.49,1.41330302]
[1720043339099,7.0661,141.52,141.49,1.41330302]
[1720043339282,7.0658,141.53,141.49,14.95330302]
[1720043339881,7.0658,141.53,141.49,22.02090302]
[1720043340279,20.6053,141.54,141.49,22.02050302]
[1720043340583,7.0656,141.53,141.49,22.02050302]
[1720043341008,7.0656,141.53,141.5,13.54]
[1720043341178,7.0662,141.52,141.49,1.41330302]
[1720043341482,7.0658,141.53,141.49,14.95330302]
[1720043342396,7.0658,141.53,141.49,13.54]
[1720043344790,7.0652,141.54,141.49,20.6076]
[1720043344981,7.0652,141.54,141.5,13.54]
[1720043345380,7.0662,141.52,141.48,24.7371]
[1720043345574,7.0658,141.53,141.5,13.54]
[1720043345812,7.0658,141.53,141.49,13.54]
[1720043347313,7.0658,141.53,141.49,20.6076]
[1720043348792,7.0658,141.53,141.5,13.54]
[1720043351503,7.0658,141.53,141.49,7.0676]
[1720043351700,7.0658,141.53,141.5,13.54]
[1720043353987,7.0658,141.53,141.5,14.36944861]
[1720043354493,8.06519429,141.54,141.5,21.43413044]
[1720043354819,7.0651,141.54,141.5,21.43413044]
[1720043357395,8.06519429,141.54,141.5,21.43413044]
[1720043357787,8.06519429,141.54,141.5,7.89413044]
[1720043359806,7.0651,141.54,141.5,7.89413044]
[1720043360211,8.06519429,141.54,141.5,7.89413044]
[1720043360799,8.06519429,141.54,141.5,7.067]
[1720043361206,7.0651,141.54,141.5,8.48017989]
[1720043362693,15.37110609,141.55,141.5,22.02017989]
[1720043362897,8.89590609,141.55,141.51,7.0666]
[1720043363617,22.43590609,141.55,141.51,7.0666]
[1720043364315,8.89590609,141.55,141.51,7.0666]
[1720043364617,8.89590609,141.55,141.51,20.6066]
[1720043366018,8.89590609,141.55,141.51,7.0666]
[1720043367914,7.0651,141.54,141.5,24.7346]
[1720043370020,7.0651,141.54,141.5,38.2746]
[1720043372104,22.43590609,141.55,141.51,7.0666]
[1720043372513,7.0652,141.54,141.5,24.7346]
[1720043372710,7.0652,141.54,141.5,38.2746]
[1720043374615,7.0652,141.54,141.5,24.7346]
[1720043374820,7.0652,141.54,141.5,38.2746]
[1720043381415,7.0652,141.54,141.5,24.7346]
[1720043382222,1.83110609,141.55,141.5,24.7346]
[1720043382223,8.89590609,141.55,141.5,24.7346]
[1720043384941,8.89590609,141.55,141.51,7.0665]
[1720043385238,8.89590609,141.55,141.5,24.7345]
[1720043386231,8.89590609,141.55,141.5,38.2745]
[1720043386934,8.89590609,141.55,141.51,7.0666]
[1720043389917,7.0653,141.54,141.5,24.7346]
[1720043390126,1.00009429,141.53,141.5,17.6677]
[1720043390334,1.00009429,141.53,141.5,24.7348]
[1720043400954,1.00009429,141.53,141.5,38.2748]
[1720043404058,1.00009429,141.53,141.46,14.9374442]
[1720043404059,1.00009429,141.53,141.51,20.6064]
[1720043404260,1.00009429,141.54,141.51,7.0664]
[1720043405043,1.00009429,141.54,141.5,7.0669]
[1720043405645,8.06529429,141.54,141.5,7.0669]
[1720043407159,1.00009429,141.54,141.5,7.0669]
[1720043407750,1.00009429,141.54,141.5,20.6069]
[1720043408353,1.00009429,141.54,141.51,7.0665]
[1720043411870,1.00009429,141.54,141.51,20.6065]
[1720043412360,1.00009429,141.54,141.51,7.0665]
[1720043418771,1.83110609,141.55,141.5,14.9418111]
[1720043418968,1.83110609,141.55,141.53,7.0656]
[1720043419471,1.83110609,141.55,141.52,24.7311]
[1720043420970,1.00009429,141.54,141.52,24.7311]
[1720043423176,1.00009429,141.54,141.53,7.0656]
[1720043423358,1.83110609,141.55,141.53,7.0656]
[1720043428175,1.83110609,141.55,141.54,7.0651]
[1720043433683,1.83110609,141.55,141.54,24.7279]
[1720043433684,0.8310118,141.55,141.54,24.7279]
[1720043445094,0.8310118,141.55,141.54,17.6628]
[1720043445680,0.8310118,141.55,141.53,7.0654]
[1720043446674,0.8310118,141.55,141.54,7.0651]
[1720043450791,0.8310118,141.55,141.53,7.0654]
[1720043451594,0.8310118,141.55,141.54,7.0651]
[1720043453986,0.8310118,141.55,141.53,7.0654]
[1720043454187,0.8310118,141.55,141.53,20.6054]
[1720043454910,0.8310118,141.55,141.53,7.0654]
[1720043455411,0.8310118,141.55,141.53,20.6054]
[1720043457088,0.8310118,141.55,141.53,13.54]
[1720043457598,0.8310118,141.55,141.53,20.6056]
[1720043459198,0.8310118,141.55,141.53,7.0656]
[1720043460211,0.8310118,141.55,141.52,39.68425306]
[1720043460390,0.8310118,141.55,141.53,7.0656]
[1720043461112,0.8310118,141.55,141.52,39.68415306]
[1720043461586,1.83110609,141.55,141.52,38.2711]
[1720043461786,0.8310118,141.55,141.52,38.2711]
[1720043469311,0.8310118,141.55,141.53,7.0656]
[1720043470016,0.8310118,141.55,141.52,31.2053]
[1720043470017,0.8310118,141.55,141.52,17.6653]
[1720043470322,7.8957118,141.55,141.51,7.0664]
[1720043470525,1.00009429,141.54,141.49,17.6678]
[1720043470702,1.00009429,141.54,141.5,13.54]
[1720043471016,1.00009429,141.54,141.51,7.0663]
[1720043471213,1.00009429,141.54,141.51,20.6063]
[1720043471616,17.48099429,141.54,141.51,7.0663]
[1720043472324,1.00009429,141.54,141.51,7.0663]
[1720043473113,1.00009429,141.54,141.5,24.7335]
[1720043473502,1.00009429,141.54,141.5,38.2735]
[1720043474595,1.00009429,141.54,141.5,24.7335]
[1720043474795,1.00009429,141.54,141.5,38.2735]
[1720043475526,1.00009429,141.54,141.51,7.0665]
[1720043476623,1.00009429,141.54,141.51,20.6065]
[1720043477410,1.00009429,141.54,141.51,13.54]
[1720043477606,8.06529429,141.54,141.51,13.54]
[1720043477813,8.06529429,141.54,141.5,38.2735]
[1720043478626,16.5364,141.53,141.5,38.2735]
[1720043478830,16.5364,141.53,141.5,24.7335]
[1720043480605,0.8310118,141.55,141.51,7.0662]
[1720043480920,0.8310118,141.55,141.54,7.0651]
[1720043481927,0.8310118,141.55,141.53,21.61159372]
[1720043482235,0.8310118,141.55,141.53,20.6054]
[1720043484447,0.8310118,141.55,141.53,13.54]
[1720043486250,0.8310118,141.55,141.52,24.731]
[1720043486562,0.8310118,141.55,141.53,13.54]
[1720043487848,0.8310118,141.55,141.52,38.271]
[1720043489227,0.8310118,141.55,141.53,7.0653]
[1720043489643,0.8310118,141.55,141.54,7.0651]
[1720043490441,0.8310118,141.55,141.53,20.6054]
[1720043491544,0.8310118,141.55,141.54,20.6051]
[1720043491852,0.8310118,141.55,141.54,13.54]
[1720043492031,0.8310118,141.55,141.53,7.0654]
[1720043492223,0.8310118,141.55,141.54,13.54]
[1720043493139,0.8310118,141.55,141.53,20.6054]
[1720043493948,0.8310118,141.55,141.53,13.54]
[1720043494118,0.8310118,141.55,141.52,24.731]
[1720043494322,0.8310118,141.55,141.53,13.54]
[1720043494946,0.8310118,141.55,141.52,38.271]
[1720043496724,0.8310118,141.55,141.53,13.54]
[1720043498826,0.8310118,141.55,141.53,20.6055]
[1720043499023,0.8310118,141.55,141.54,13.54]
[1720043499440,0.8310118,141.55,141.53,13.54]
[1720043499643,0.8310118,141.55,141.54,13.54]
[1720043500750,0.8310118,141.55,141.53,20.6056]
[1720043500946,0.8310118,141.55,141.53,13.54]
[1720043501148,0.8310118,141.55,141.53,20.6055]
[1720043501856,0.8310118,141.55,141.54,13.54]
[1720043506569,0.8310118,141.55,141.52,17.6651]
[1720043506868,0.8310118,141.55,141.52,38.2712]
[1720043507637,0.8310118,141.55,141.53,13.54]
[1720043514353,0.8310118,141.55,141.54,13.54]
[1720043519045,0.8310118,141.55,141.54,20.6051]
[1720043519784,0.8310118,141.55,141.54,13.54]
[1720043520966,0.8310118,141.55,141.54,20.6051]
[1720043524176,0.8310118,141.55,141.52,17.6651]
[1720043524479,0.8310118,141.55,141.54,31.2028]
[1720043524685,0.8310118,141.55,141.54,38.2679]
[1720043531778,0.8310118,141.55,141.54,24.7279]
[1720043532764,0.8310118,141.55,141.54,26.13886595]
[1720043535483,0.8310118,141.55,141.54,24.7279]
[1720043552278,0.8310118,141.55,141.54,38.2679]
[1720043576795,0.8310118,141.55,141.54,24.7279]
[1720043577104,0.8310118,141.55,141.54,38.2679]
[1720043580625,0.8310118,141.55,141.54,24.7279]
[1720043580811,0.8310118,141.55,141.54,38.2679]
[1720043582624,0.8310118,141.55,141.54,24.7279]
[1720043582848,0.8310118,141.55,141.54,26.14043216]
[1720043586413,0.8310118,141.55,141.54,39.68043216]
[1720043592639,0.8310118,141.55,141.54,26.14043216]
[1720043592940,0.8310118,141.55,141.54,24.7279]
[1720043593148,0.8310118,141.55,141.54,26.14039102]
[1720043595437,0.8310118,141.55,141.54,24.7279]
[1720043595815,0.8310118,141.55,141.54,26.14062793]
[1720043605428,0.8310118,141.55,141.54,24.7279]
[1720043605637,0.8310118,141.55,141.54,26.14062679]
[1720043607047,0.8310118,141.55,141.54,24.7279]
[1720043607254,0.8310118,141.55,141.54,26.14062732]
[1720043607929,0.8310118,141.55,141.54,39.68062732]
[1720043608451,0.8310118,141.55,141.54,38.2679]
[1720043609932,0.8310118,141.55,141.54,24.7279]
[1720043610351,0.8310118,141.55,141.51,35.3321]
[1720043610352,0.8310118,141.55,141.52,7.0657]
[1720043610548,0.8310118,141.55,141.51,31.2055]
[1720043610741,0.8310118,141.55,141.52,13.54]
[1720043611135,15.37110609,141.55,141.51,17.6655]
[1720043611537,7.066,141.53,141.49,7.0676]
[1720043611752,35.9213,141.53,141.49,7.0676]
[1720043612056,0.8310118,141.55,141.51,38.273]
[1720043612057,7.8957118,141.55,141.51,38.273]
[1720043612431,0.8310118,141.55,141.52,7.0661]
[1720043612650,0.8310118,141.55,141.52,8.47912634]
[1720043612951,0.8310118,141.55,141.52,22.01912634]
[1720043613148,0.8310118,141.55,141.52,13.54]
[1720043613352,7.8956118,141.55,141.52,13.54]
[1720043613854,7.8956118,141.55,141.51,38.2728]
[1720043614153,7.0651,141.54,141.51,17.6664]
[1720043614361,7.8957118,141.55,141.51,24.7329]
[1720043614535,22.43580609,141.55,141.51,24.7329]
[1720043614932,14.54009429,141.54,141.48,24.7376]
[1720043615132,7.0659,141.53,141.49,20.6075]
[1720043615374,7.0662,141.52,141.48,24.7378]
[1720043615557,7.0658,141.53,141.49,20.6076]
[1720043616750,20.6058,141.53,141.49,7.0676]
[1720043618745,7.0658,141.53,141.49,7.0676]
[1720043618947,7.0658,141.53,141.49,20.6076]
[1720043619444,20.6053,141.54,141.5,7.067]
[1720043619762,1.00009429,141.53,141.5,7.067]
[1720043620059,8.06579429,141.53,141.49,20.6074]
[1720043621272,1.00009429,141.53,141.5,7.0671]
[1720043622638,8.06569429,141.53,141.49,20.6074]
[1720043623073,8.06569429,141.53,141.49,7.0674]
[1720043623248,8.06569429,141.53,141.49,20.6074]
[1720043623641,21.60569429,141.53,141.49,7.0674]
[1720043623843,20.6056,141.53,141.5,7.0671]
[1720043625061,7.0656,141.53,141.5,7.0671]
[1720043625474,20.6056,141.53,141.5,7.0671]
[1720043626679,20.6056,141.53,141.49,7.0675]
[1720043629679,1.83110609,141.55,141.48,24.7376]
[1720043629680,21.60629429,141.52,141.48,24.7376]
[1720043629894,1.00009429,141.51,141.48,24.7376]
[1720043630421,18.4926118,141.55,141.48,24.7376]
[1720043630422,7.0657,141.53,141.49,7.0674]
[1720043630683,7.0657,141.53,141.49,20.6074]
[1720043630887,7.0657,141.53,141.49,7.0674]
[1720043631382,7.0657,141.53,141.49,20.6074]
[1720043632373,8.06529429,141.54,141.5,20.6069]
[1720043632571,7.0652,141.54,141.5,7.0669]
[1720043632776,7.0652,141.54,141.5,20.6069]
[1720043633390,15.37110609,141.55,141.5,20.6069]
[1720043633890,8.89580609,141.55,141.5,20.6069]
[1720043634095,8.89580609,141.55,141.51,20.6065]
[1720043634501,7.0651,141.54,141.5,38.2744]
[1720043634803,7.0651,141.54,141.5,31.2075]
[1720043635982,7.0651,141.54,141.49,7.0674]
[1720043635983,7.0657,141.53,141.49,20.6074]
[1720043636386,7.0657,141.53,141.5,13.54]
[1720043636586,7.0657,141.53,141.49,20.6074]
[1720043638685,7.0657,141.53,141.49,7.0674]
[1720043638887,20.6057,141.53,141.49,7.0674]
[1720043639700,7.0652,141.54,141.5,7.0671]
[1720043640306,7.0653,141.54,141.49,38.2764]
[1720043640598,7.0653,141.54,141.5,7.0671]
[1720043641798,1.83110609,141.55,141.51,7.0666]
[1720043641994,15.37110609,141.55,141.51,17.666]
[1720043642300,7.0652,141.54,141.51,17.666]
[1720043644297,7.0652,141.54,141.49,7.0674]
[1720043644594,7.0656,141.53,141.5,13.54]
[1720043645003,7.0653,141.54,141.5,13.54]
[1720043645509,7.0653,141.54,141.5,20.607]
[1720043647594,7.0653,141.54,141.5,7.067]
[1720043647798,7.0653,141.54,141.5,20.607]
[1720043648707,7.0653,141.54,141.5,7.067]
[1720043648882,20.6053,141.54,141.49,20.6074]
[1720043649507,20.6053,141.54,141.5,7.067]
[1720043649697,7.0653,141.54,141.5,20.607]
[1720043653800,1.83110609,141.55,141.51,20.6066]
[1720043653801,7.8958118,141.55,141.51,20.6066]
[1720043654604,7.0652,141.54,141.5,24.7346]
[1720043655106,7.0652,141.54,141.5,38.2746]
[1720043655883,7.0652,141.54,141.51,13.54]
[1720043656387,7.0652,141.54,141.5,24.7346]
[1720043656604,7.0657,141.53,141.5,17.6676]
[1720043656797,7.0653,141.54,141.5,31.2076]
[1720043658586,7.0653,141.54,141.5,17.6676]
[1720043658785,7.0653,141.54,141.5,31.2076]
[1720043659086,7.0656,141.53,141.5,17.6676]
[1720043659389,15.37110609,141.55,141.49,13.54]
[1720043659595,7.0658,141.53,141.49,20.6073]
[1720043659800,7.0658,141.53,141.5,13.54]
[1720043660311,7.0653,141.54,141.5,13.54]
[1720043660518,7.0653,141.54,141.49,20.6073]
[1720043662108,7.0653,141.54,141.49,13.54]
[1720043662313,7.0653,141.54,141.5,7.0669]
[1720043662815,7.0653,141.54,141.5,20.6069]
[1720043665429,7.0653,141.54,141.5,7.0669]
[1720043665596,7.0653,141.54,141.5,20.6069]
[1720043671826,7.0653,141.54,141.5,7.0669]
[1720043672038,7.0653,141.54,141.5,20.6069]
[1720043672332,7.0653,141.54,141.5,7.0669]
[1720043672527,7.0653,141.54,141.5,20.6069]
[1720043675470,0.8310118,141.55,141.52,17.6651]
[1720043675648,0.8310118,141.55,141.51,13.54]
[1720043675940,7.0651,141.54,141.5,20.6069]
[1720043676729,0.8310118,141.55,141.51,19.06263474]
[1720043676947,0.8310118,141.55,141.54,20.6051]
[1720043677136,0.8310118,141.55,141.54,22.34133898]
[1720043677648,0.8310118,141.55,141.54,7.0651]
[1720043677825,0.8310118,141.55,141.54,20.6051]
[1720043678007,0.8310118,141.55,141.54,62.7308]
[1720043678918,0.8310118,141.55,141.54,76.2708]
[1720043679111,0.8310118,141.55,141.54,62.7308]
[1720043679322,0.8310118,141.55,141.53,17.6635]
[1720043679640,0.8310118,141.55,141.54,13.54]
[1720043680419,0.8310118,141.55,141.54,20.6051]
[1720043682970,0.8310118,141.55,141.54,7.0651]
[1720043683130,0.8310118,141.55,141.54,20.6051]
[1720043687556,0.8310118,141.55,141.54,7.0651]
[1720043688327,0.8310118,141.55,141.54,20.6051]
[1720043688935,0.8310118,141.55,141.54,7.0651]
[1720043689136,0.8310118,141.55,141.54,20.6051]
[1720043690249,0.8310118,141.55,141.54,7.0651]
[1720043690485,0.8310118,141.55,141.54,20.6051]
[1720043693853,0.8310118,141.55,141.54,7.0651]
[1720043694041,0.8310118,141.55,141.54,20.6051]
[1720043694748,0.8310118,141.55,141.54,7.0651]
[1720043695134,0.8310118,141.55,141.54,20.6051]
[1720043695655,0.8310118,141.55,141.54,7.4051]
[1720043695864,0.8310118,141.55,141.54,20.9451]
[1720043697455,0.8310118,141.55,141.54,7.4051]
[1720043697649,0.8310118,141.55,141.54,20.9451]
[1720043697834,0.8310118,141.55,141.54,7.4051]
[1720043698151,0.8310118,141.55,141.54,34.4851]
[1720043698663,0.8310118,141.55,141.54,20.9451]
[1720043699155,0.8310118,141.55,141.54,34.4851]
[1720043701863,0.8310118,141.55,141.54,54.4851]
[1720043702245,0.8310118,141.55,141.54,154.4851]
[1720043702651,15.6416,141.63,141.58,17.6577]
[1720043702837,18.64679429,141.67,141.54,148.66]
[1720043702838,34.16269429,141.67,141.61,13.54]
[1720043703160,16.51599429,141.67,141.61,14.95069985]
[1720043703360,30.05599429,141.67,141.62,31.1924]
[1720043703859,15.5159,141.67,141.63,1.4101026]
[1720043704065,15.5159,141.67,141.64,13.54]
[1720043704375,15.5159,141.67,141.63,20.6004]
[1720043704542,15.5159,141.67,141.65,17.6491]
[1720043704749,15.5159,141.67,141.64,7.06]
[1720043704958,15.5159,141.67,141.65,7.0596]
[1720043705489,15.5159,141.67,141.65,20.5996]
[1720043705850,15.5159,141.67,141.64,17.6503]
[1720043705851,0.8310118,141.69,141.66,20.5989]
[1720043706368,0.8310118,141.69,141.66,24.7061]
[1720043706547,0.8310118,141.69,141.67,7.0586]
[1720043706957,0.8310118,141.69,141.66,38.2462]
[1720043707162,0.8310118,141.69,141.67,7.0584]
[1720043707555,0.8310118,141.69,141.66,31.1873]
[1720043707750,0.8310118,141.69,141.66,24.7062]
[1720043708153,0.8310118,141.69,141.66,38.2462]
[1720043708348,0.8310118,141.69,141.67,7.0586]
[1720043708547,0.8310118,141.69,141.66,38.2463]
[1720043708749,0.8310118,141.69,141.68,7.0581]
[1720043709653,0.8310118,141.69,141.68,20.5981]
[1720043713062,0.8310118,141.69,141.66,17.6473]
[1720043713404,0.8310118,141.69,141.67,13.54]
[1720043713878,0.8310118,141.69,141.66,17.6473]
[1720043714181,0.8310118,141.69,141.68,20.5981]
[1720043714361,0.8310118,141.69,141.68,7.0581]
[1720043715494,0.8310118,141.69,141.68,20.5981]
[1720043715666,0.8310118,141.69,141.68,54.4781]
[1720043715987,0.8310118,141.69,141.68,40.9381]
[1720043716355,0.8310118,141.69,141.68,40.5981]